Department family,Entity,Date,Expense Type,Expense area,Supplier,Transaction number,Amount
NHS,Barnsley PCT,01/02/2013,GP Contracts,Primary Care,GP CONTRACT,Feb-13,"80,236.69"
NHS,Barnsley PCT,06/02/2013,Healthcare Contracts,Healthcare,BARNSLEY HOSPITAL NHS FOUNDATION TRUST,6020250,"11,380,944.00"
NHS,Barnsley PCT,06/02/2013,Healthcare Contracts,Healthcare,SHEFFIELD CHILDRENS HOSPITAL,2100148650,"30,828.96"
NHS,Barnsley PCT,06/02/2013,Healthcare Contracts,Healthcare,SHEFFIELD PCT,2100052280,"98,332.00"
NHS,Barnsley PCT,06/02/2013,Healthcare Contracts,Healthcare,CLAREMONT HOSPITAL,MAN30148,"41,067.00"
NHS,Barnsley PCT,06/02/2013,Healthcare Contracts,Healthcare,NEVILLE HEALTH CARE LIMITED,2710,"44,170.83"
NHS,Barnsley PCT,06/02/2013,Healthcare Contracts,Specialist Commissioning Group,SHEFFIELD HEALTH & SOCIAL CARE,2100075822,"270,840.17"
NHS,Barnsley PCT,06/02/2013,Healthcare Contracts,Specialist Commissioning Group,SHEFFIELD CHILDRENS HOSPITAL,2100147931,"26,631.00"
NHS,Barnsley PCT,06/02/2013,Healthcare Contracts,Healthcare,PSS - LIVERPOOL,14398,"54,860.00"
NHS,Barnsley PCT,06/02/2013,Healthcare Contracts,Specialist Commissioning Group,YORK TEACHING HOSPITALS NHS FT,1010001042,"44,842.00"
NHS,Barnsley PCT,06/02/2013,Healthcare Contracts,Specialist Commissioning Group,SHEFFIELD HEALTH & SOCIAL CARE,2100075824,"29,252.59"
NHS,Barnsley PCT,06/02/2013,Healthcare Contracts,Specialist Commissioning Group,EAST RIDING FERTILITY SERVICES LTD,114142,"68,805.47"
NHS,Barnsley PCT,06/02/2013,Healthcare Contracts,Specialist Commissioning Group,NOVA HEALTHCARE,1224,"112,361.16"
NHS,Barnsley PCT,06/02/2013,Healthcare Contracts,Specialist Commissioning Group,OXFORD UNIVERSITY HOSPITALS NHS TRUST,8154962,"54,566.00"
NHS,Barnsley PCT,06/02/2013,Healthcare Contracts,Specialist Commissioning Group,GUYS & ST.THOMAS HOSPITAL TRUST,3103578,"131,814.00"
NHS,Barnsley PCT,06/02/2013,Healthcare Contracts,Specialist Commissioning Group,SALFORD ROYAL HOSPITALS NHS TRUST,1000137314,"35,658.58"
NHS,Barnsley PCT,06/02/2013,Healthcare Contracts,Specialist Commissioning Group,SHEFFIELD CHILDRENS HOSPITAL,2100148578,"31,296.00"
NHS,Barnsley PCT,06/02/2013,Healthcare Contracts,Specialist Commissioning Group,NOTTINGHAM UNIVERSITY HOSPITALS NHS TRUST,2000041899,"54,595.00"
NHS,Barnsley PCT,06/02/2013,Healthcare Contracts,Specialist Commissioning Group,DEPARTMENT OF HEALTH,208485,"164,110.00"
NHS,Barnsley PCT,06/02/2013,Healthcare Contracts,Specialist Commissioning Group,DEPARTMENT OF HEALTH,208482,"215,838.00"
NHS,Barnsley PCT,11/02/2013,Healthcare Contracts,Specialist Commissioning Group,NORTHUMBERLAND TYNE & WEAR NHS TRUST,528531,"37,045.00"
NHS,Barnsley PCT,13/02/2013,GP Contracts,Primary Care,GP CONTRACT,Feb-13,"54,885.42"
NHS,Barnsley PCT,13/02/2013,GP Contracts,Primary Care,GP CONTRACT,Feb-13,"52,675.75"
NHS,Barnsley PCT,13/02/2013,Healthcare Contracts,Healthcare,BARNSLEY HOSPITAL NHS FOUNDATION TRUST,6020251,"122,931.00"
NHS,Barnsley PCT,13/02/2013,Healthcare Contracts,Healthcare,SHEFFIELD TEACHING HOSPITALS NHS TRUST,4000339715,"217,754.00"
NHS,Barnsley PCT,13/02/2013,Healthcare Contracts,Healthcare,SHEFFIELD TEACHING HOSPITALS NHS TRUST,4000339743,"27,220.00"
NHS,Barnsley PCT,13/02/2013,Healthcare Contracts,Healthcare,SHEFFIELD TEACHING HOSPITALS NHS TRUST,4000339533,"221,156.00"
NHS,Barnsley PCT,13/02/2013,Healthcare Contracts,Healthcare,DONCASTER & BASSETLAW HOSPITAL,82110443,"620,122.00"
NHS,Barnsley PCT,13/02/2013,Healthcare Contracts,Healthcare,MID YORKSHIRE HOSPITALS NHS TRUST,M157311,"146,011.00"
NHS,Barnsley PCT,13/02/2013,Healthcare Contracts,Healthcare,ROTHERHAM NHS FOUNDATION TRUST,6033420,"924,104.47"
NHS,Barnsley PCT,13/02/2013,Healthcare Contracts,Healthcare,ROTHERHAM NHS FOUNDATION TRUST,6033426,"29,532.42"
NHS,Barnsley PCT,13/02/2013,Healthcare Contracts,Healthcare,SHEFFIELD CHILDRENS HOSPITAL,2100148925,"331,622.10"
NHS,Barnsley PCT,13/02/2013,Healthcare Contracts,Healthcare,SHEFFIELD CHILDRENS HOSPITAL,2100148738,"31,317.20"
NHS,Barnsley PCT,13/02/2013,Healthcare Contracts,Healthcare,THE LEEDS TEACHING HOSPITALS,397399,"81,749.00"
NHS,Barnsley PCT,13/02/2013,Healthcare Contracts,Healthcare,BARNSLEY HOSPICE,1658,"186,709.55"
NHS,Barnsley PCT,13/02/2013,Healthcare Contracts,Healthcare,CARE UK,120006178,"30,230.54"
NHS,Barnsley PCT,13/02/2013,Healthcare Contracts,Healthcare,BARNSLEY MBC,9000149500,"34,798.14"
NHS,Barnsley PCT,13/02/2013,Healthcare Contracts,Specialist Commissioning Group,MERSEY CARE NHS TRUST,I0028718,"43,667.00"
NHS,Barnsley PCT,13/02/2013,Healthcare Contracts,Specialist Commissioning Group,NOTTINGHAMSHIRE HEALTHCARE NHS TRUST,1000024139,"2,036,584.00"
NHS,Barnsley PCT,13/02/2013,Healthcare Contracts,Specialist Commissioning Group,NW SPECIAL SRVS COMM TEAM,9133073,"188,166.00"
NHS,Barnsley PCT,13/02/2013,Healthcare Contracts,Specialist Commissioning Group,WEST LONDON MENTAL HEALTH NHS TRUST,1100042312,"27,167.00"
NHS,Barnsley PCT,13/02/2013,Healthcare Contracts,Specialist Commissioning Group,HUMBER MH TEACHING NHS TRUST,2018291,"207,161.09"
NHS,Barnsley PCT,13/02/2013,Healthcare Contracts,Specialist Commissioning Group,HUMBER MH TEACHING NHS TRUST,2018292,"131,954.84"
NHS,Barnsley PCT,13/02/2013,Healthcare Contracts,Specialist Commissioning Group,HUMBER MH TEACHING NHS TRUST,2018293,"391,629.59"
NHS,Barnsley PCT,13/02/2013,Healthcare Contracts,Specialist Commissioning Group,HUMBER MH TEACHING NHS TRUST,2018295,"39,284.25"
NHS,Barnsley PCT,13/02/2013,Healthcare Contracts,Specialist Commissioning Group,HUMBER MH TEACHING NHS TRUST,2018296,"236,110.34"
NHS,Barnsley PCT,13/02/2013,Healthcare Contracts,Specialist Commissioning Group,NOTTINGHAMSHIRE HEALTHCARE NHS TRUST,1000024127,"709,020.00"
NHS,Barnsley PCT,13/02/2013,Healthcare Contracts,Specialist Commissioning Group,ST ANDREW'S HEALTHCARE,50075507,"25,010.43"
NHS,Barnsley PCT,13/02/2013,Healthcare Contracts,Specialist Commissioning Group,ST ANDREW'S HEALTHCARE,50075494,"39,200.00"
NHS,Barnsley PCT,13/02/2013,Healthcare Contracts,Specialist Commissioning Group,ALPHA HOSPITAL LTD,BUR 002020,"64,031.74"
NHS,Barnsley PCT,13/02/2013,Healthcare Contracts,Specialist Commissioning Group,ALPHA HOSPITALS BURY,SHF 000678,"169,449.25"
NHS,Barnsley PCT,13/02/2013,Healthcare Contracts,Specialist Commissioning Group,CALDERSTONES NHS TRUST,M0008718,"254,071.00"
NHS,Barnsley PCT,13/02/2013,Healthcare Contracts,Specialist Commissioning Group,CHESWOLD PARK HOSPITAL,3202,"681,877.00"
NHS,Barnsley PCT,13/02/2013,Healthcare Contracts,Specialist Commissioning Group,CHESWOLD PARK HOSPITAL,3188,"712,860.04"
NHS,Barnsley PCT,13/02/2013,Healthcare Contracts,Specialist Commissioning Group,CYGNET HOSPITAL AT WYKE,WKE1672,"60,032.12"
NHS,Barnsley PCT,13/02/2013,Healthcare Contracts,Specialist Commissioning Group,CYGNET HOSPITAL AT WYKE,WKE1673,"50,219.68"
NHS,Barnsley PCT,13/02/2013,Healthcare Contracts,Specialist Commissioning Group,CYGNET HOSPITAL BIERLEY,BIE4881,"45,024.09"
NHS,Barnsley PCT,13/02/2013,Healthcare Contracts,Specialist Commissioning Group,CYGNET HOSPITAL BIERLEY,BIE4862,"87,155.88"
NHS,Barnsley PCT,13/02/2013,Healthcare Contracts,Specialist Commissioning Group,LEEDS & YORK PARTNERSHIP NHS FT,972917,"648,015.00"
NHS,Barnsley PCT,13/02/2013,Healthcare Contracts,Specialist Commissioning Group,LEEDS & YORK PARTNERSHIP NHS FT,972913,"197,500.00"
NHS,Barnsley PCT,13/02/2013,Healthcare Contracts,Specialist Commissioning Group,LIGHTHOUSE HEALTHCARE,30755,"238,137.09"
NHS,Barnsley PCT,13/02/2013,Healthcare Contracts,Specialist Commissioning Group,PARTNERSHIPS IN CARE (CENTRAL OFFICES),PCO00140,"1,159,759.72"
NHS,Barnsley PCT,13/02/2013,Healthcare Contracts,Specialist Commissioning Group,PARTNERSHIPS IN CARE (CENTRAL OFFICES),PCO00139,"49,568.33"
NHS,Barnsley PCT,13/02/2013,Healthcare Contracts,Specialist Commissioning Group,RAPHAEL HEALTH CARE LTD,2002,"105,145.60"
NHS,Barnsley PCT,13/02/2013,Healthcare Contracts,Specialist Commissioning Group,ROTHERHAM DONCASTER & SOUTH HUMBER MENTAL HEALTH,62289,"246,155.00"
NHS,Barnsley PCT,13/02/2013,Healthcare Contracts,Specialist Commissioning Group,THE HUNTERCOMBE GROUP,LIH00368 TO LIH00379,"151,343.92"
NHS,Barnsley PCT,13/02/2013,Healthcare Contracts,Specialist Commissioning Group,HUMBER MH TEACHING NHS TRUST,2018294,"106,595.34"
NHS,Barnsley PCT,13/02/2013,Healthcare Contracts,Specialist Commissioning Group,LEEDS & YORK PARTNERSHIP NHS FT,972915,"86,033.33"
NHS,Barnsley PCT,13/02/2013,Healthcare Contracts,Specialist Commissioning Group,LEEDS COMMUNITY HEALTHCARE NHS TRUST,24871734,"43,577.78"
NHS,Barnsley PCT,13/02/2013,Healthcare Contracts,Specialist Commissioning Group,PRIORY - CHEADLE ROYAL HOSPITAL,2520000580,"25,802.23"
NHS,Barnsley PCT,13/02/2013,Healthcare Contracts,Specialist Commissioning Group,PRIORY - CHEADLE ROYAL HOSPITAL,2510000531,"29,124.48"
NHS,Barnsley PCT,13/02/2013,Healthcare Contracts,Specialist Commissioning Group,PRIORY - CHEADLE ROYAL HOSPITAL,2510000530,"32,244.96"
NHS,Barnsley PCT,13/02/2013,Healthcare Contracts,Specialist Commissioning Group,PRIORY - CHEADLE ROYAL HOSPITAL,2530000885,"26,290.79"
NHS,Barnsley PCT,13/02/2013,Healthcare Contracts,Specialist Commissioning Group,PRIORY - CHEADLE ROYAL HOSPITAL,2530000882,"26,290.79"
NHS,Barnsley PCT,13/02/2013,Healthcare Contracts,Specialist Commissioning Group,PRIORY - CHEADLE ROYAL HOSPITAL,2520000583,"25,802.23"
NHS,Barnsley PCT,13/02/2013,Healthcare Contracts,Specialist Commissioning Group,PRIORY - CHEADLE ROYAL HOSPITAL,2520000582,"25,802.23"
NHS,Barnsley PCT,13/02/2013,Healthcare Contracts,Specialist Commissioning Group,PRIORY - CHEADLE ROYAL HOSPITAL,2520000581,"25,802.23"
NHS,Barnsley PCT,13/02/2013,Healthcare Contracts,Specialist Commissioning Group,SHEFFIELD CHILDRENS HOSPITAL,2100148933,"786,291.30"
NHS,Barnsley PCT,13/02/2013,Healthcare Contracts,Specialist Commissioning Group,ST ANDREW'S HEALTHCARE,50075504,"29,231.16"
NHS,Barnsley PCT,13/02/2013,Healthcare Contracts,Specialist Commissioning Group,TEES ESK & WEAR VALLEYS  NHS FT,430024304,"43,149.52"
NHS,Barnsley PCT,13/02/2013,Healthcare Contracts,Specialist Commissioning Group,LEEDS & YORK PARTNERSHIP NHS FT,972774,"177,842.99"
NHS,Barnsley PCT,13/02/2013,Consultancy,HQ Services,DYNAMIC INITIATIVES LIMITED,D12937,"31,924.20"
NHS,Barnsley PCT,13/02/2013,Audit Fees,HQ Services,KPMG LLP,5500628760,"32,367.60"
NHS,Barnsley PCT,13/02/2013,Audit Fees,HQ Services,KPMG LLP,5500605840,"32,367.60"
NHS,Barnsley PCT,13/02/2013,Healthcare Contracts,Specialist Commissioning Group,DONCASTER & BASSETLAW HOSPITAL,82110414,"109,674.00"
NHS,Barnsley PCT,13/02/2013,Healthcare Contracts,Specialist Commissioning Group,BRADFORD HOSPITALS NHS TRUST,274508,"1,988,173.00"
NHS,Barnsley PCT,13/02/2013,Healthcare Contracts,Specialist Commissioning Group,MID YORKSHIRE HOSPITALS NHS TRUST,M157317,"1,288,433.00"
NHS,Barnsley PCT,13/02/2013,Healthcare Contracts,Specialist Commissioning Group,SHEFFIELD TEACHING HOSPITALS NHS TRUST,4000339752,"127,196.00"
NHS,Barnsley PCT,13/02/2013,Healthcare Contracts,Specialist Commissioning Group,ROTHERHAM NHS FOUNDATION TRUST,6033425,"73,631.78"
NHS,Barnsley PCT,13/02/2013,Healthcare Contracts,Specialist Commissioning Group,CALDERDALE & HUDDERSFIELD NHS TRUST,4710000329,"227,553.00"
NHS,Barnsley PCT,13/02/2013,Healthcare Contracts,Specialist Commissioning Group,EAST RIDING FERTILITY SERVICES LTD,114301,"68,805.47"
NHS,Barnsley PCT,13/02/2013,Healthcare Contracts,Specialist Commissioning Group,YORK TEACHING HOSPITALS NHS FT,1010000670,"922,853.00"
NHS,Barnsley PCT,13/02/2013,Healthcare Contracts,Specialist Commissioning Group,NEWCASTLE UPON TYNE HOSPITALS NHS TRUST,R0198813,"373,075.00"
NHS,Barnsley PCT,13/02/2013,Healthcare Contracts,Specialist Commissioning Group,PAPWORTH HOSPITAL TRUST,I0076752,"27,895.00"
NHS,Barnsley PCT,13/02/2013,Healthcare Contracts,Specialist Commissioning Group,THE ROYAL NATIONAL ORTHOPAEDIC,B0021449,"38,329.00"
NHS,Barnsley PCT,13/02/2013,Healthcare Contracts,Specialist Commissioning Group,THE ROYAL ORTHOPAEDIC TRUST,34840,"69,330.67"
NHS,Barnsley PCT,13/02/2013,Healthcare Contracts,Specialist Commissioning Group,UNIVERSITY HOSP BIRMINGHAM NHS TRUST,OP/N037826,"59,315.00"
NHS,Barnsley PCT,13/02/2013,Healthcare Contracts,Specialist Commissioning Group,CAMBRIDGE UNIVERSITY HOSPITALS,2003280,"52,285.70"
NHS,Barnsley PCT,13/02/2013,Healthcare Contracts,Specialist Commissioning Group,BIRMINGHAM CHILDRENS HOSPITAL,15660112,"61,078.50"
NHS,Barnsley PCT,13/02/2013,Healthcare Contracts,Specialist Commissioning Group,ROYAL FREE LONDON NHS FT,1319555,"45,453.00"
NHS,Barnsley PCT,13/02/2013,Healthcare Contracts,Specialist Commissioning Group,IMPERIAL COLLEGE HEALTHCARE NHS TRUST,H0082149,"65,907.00"
NHS,Barnsley PCT,13/02/2013,Healthcare Contracts,Specialist Commissioning Group,OXFORD UNIVERSITY HOSPITALS NHS TRUST,8157184,"63,766.00"
NHS,Barnsley PCT,13/02/2013,Healthcare Contracts,Specialist Commissioning Group,BARTS  HEALTH  NHS TRUST,156308,"42,999.00"
NHS,Barnsley PCT,13/02/2013,Healthcare Contracts,Specialist Commissioning Group,GREAT ORMOND ST HOSPITAL NHS TRUST,X0097015,"83,064.17"
NHS,Barnsley PCT,13/02/2013,Healthcare Contracts,Specialist Commissioning Group,GUYS & ST.THOMAS HOSPITAL TRUST,3102934,"111,882.00"
NHS,Barnsley PCT,13/02/2013,Healthcare Contracts,Specialist Commissioning Group,KINGS COLLEGE HOSPITAL NHS FOUNDATION TRUST,172461,"62,343.00"
NHS,Barnsley PCT,13/02/2013,Healthcare Contracts,Specialist Commissioning Group,ROYAL BROMPTON & HAREFIELD NHS TRUST,I0157727,"36,595.03"
NHS,Barnsley PCT,13/02/2013,Healthcare Contracts,Specialist Commissioning Group,UNIVERSITY COLLEGE LONDON HOSPITALS,197229,"217,268.58"
NHS,Barnsley PCT,13/02/2013,Healthcare Contracts,Specialist Commissioning Group,UNITED LINCOLNSHIRE HOSPITALS,157340,"57,243.42"
NHS,Barnsley PCT,13/02/2013,Healthcare Contracts,Specialist Commissioning Group,NORTH TYNESIDE PCT (COMM),65004023,"60,828.00"
NHS,Barnsley PCT,13/02/2013,Healthcare Contracts,Specialist Commissioning Group,DONCASTER & BASSETLAW HOSPITAL,82110457,"687,961.00"
NHS,Barnsley PCT,13/02/2013,Healthcare Contracts,Specialist Commissioning Group,NOTTINGHAM UNIVERSITY HOSPITALS NHS TRUST,2000042908,"291,839.00"
NHS,Barnsley PCT,13/02/2013,Healthcare Contracts,Specialist Commissioning Group,SHEFFIELD TEACHING HOSPITALS NHS TRUST,4000339754,"36,961.00"
NHS,Barnsley PCT,13/02/2013,Healthcare Contracts,Specialist Commissioning Group,GATESHEAD HEALTH NHS FOUNDATION TRUST,304994,"221,550.00"
NHS,Barnsley PCT,13/02/2013,Healthcare Contracts,Specialist Commissioning Group,SHEFFIELD CHILDRENS HOSPITAL,2100148938,"37,434.00"
NHS,Barnsley PCT,13/02/2013,Healthcare Contracts,Specialist Commissioning Group,SHEFFIELD TEACHING HOSPITALS NHS TRUST,4000339713,"172,316.00"
NHS,Barnsley PCT,13/02/2013,Healthcare Contracts,Specialist Commissioning Group,SHEFFIELD TEACHING HOSPITALS NHS TRUST,4000339654,"119,200.00"
NHS,Barnsley PCT,15/02/2013,GP Contracts,Primary Care,GP CONTRACT,Feb-13,"30,354.93"
NHS,Barnsley PCT,15/02/2013,GP Contracts,Primary Care,GP CONTRACT,Feb-13,"38,479.84"
NHS,Barnsley PCT,15/02/2013,GP Contracts,Primary Care,GP CONTRACT,Feb-13,"43,019.96"
NHS,Barnsley PCT,15/02/2013,GP Contracts,Primary Care,GP CONTRACT,Feb-13,"44,597.83"
NHS,Barnsley PCT,15/02/2013,GP Contracts,Primary Care,GP CONTRACT,Feb-13,"48,143.04"
NHS,Barnsley PCT,15/02/2013,GP Contracts,Primary Care,GP CONTRACT,Feb-13,"51,667.92"
NHS,Barnsley PCT,15/02/2013,GP Contracts,Primary Care,GP CONTRACT,Feb-13,"58,058.30"
NHS,Barnsley PCT,15/02/2013,GP Contracts,Primary Care,GP CONTRACT,Feb-13,"59,188.53"
NHS,Barnsley PCT,15/02/2013,GP Contracts,Primary Care,GP CONTRACT,Feb-13,"73,070.41"
NHS,Barnsley PCT,15/02/2013,GP Contracts,Primary Care,GP CONTRACT,Feb-13,"74,014.52"
NHS,Barnsley PCT,15/02/2013,GP Contracts,Primary Care,GP CONTRACT,Feb-13,"79,645.36"
NHS,Barnsley PCT,15/02/2013,GP Contracts,Primary Care,GP CONTRACT,Feb-13,"87,011.29"
NHS,Barnsley PCT,15/02/2013,GP Contracts,Primary Care,GP CONTRACT,Feb-13,"104,343.66"
NHS,Barnsley PCT,15/02/2013,GP Contracts,Primary Care,GP CONTRACT,Feb-13,"105,230.43"
NHS,Barnsley PCT,15/02/2013,GP Contracts,Primary Care,GP CONTRACT,Feb-13,"112,635.87"
NHS,Barnsley PCT,15/02/2013,GP Contracts,Primary Care,GP CONTRACT,Feb-13,"136,597.17"
NHS,Barnsley PCT,20/02/2013,GP Contracts,Primary Care,GP CONTRACT,Feb-13,"48,976.42"
NHS,Barnsley PCT,20/02/2013,Healthcare Contracts,Healthcare,BARNSLEY HOSPITAL NHS FOUNDATION TRUST,6020385,"173,000.00"
NHS,Barnsley PCT,20/02/2013,Healthcare Contracts,Healthcare,SHEFFIELD TEACHING HOSPITALS NHS TRUST,4000339682,"1,959,892.00"
NHS,Barnsley PCT,20/02/2013,Healthcare Contracts,Healthcare,ROTHERHAM DONCASTER & SOUTH HUMBER MENTAL HEALTH,62288,"50,289.46"
NHS,Barnsley PCT,20/02/2013,Healthcare Contracts,Healthcare,SOUTH WEST YORKSHIRE PARTNERSHIP,713446,"6,088,119.00"
NHS,Barnsley PCT,20/02/2013,Healthcare Contracts,Healthcare,YORKSHIRE AMBULANE SERVICE,347273,"532,000.00"
NHS,Barnsley PCT,20/02/2013,Healthcare Contracts,Healthcare,YORKSHIRE AMBULANE SERVICE,347278,"112,104.00"
NHS,Barnsley PCT,20/02/2013,Healthcare Contracts,Specialist Commissioning Group,HUMBER MH TEACHING NHS TRUST,2018218,"66,740.48"
NHS,Barnsley PCT,20/02/2013,Healthcare Contracts,Specialist Commissioning Group,NOTTINGHAMSHIRE HEALTHCARE NHS TRUST,1000024065,"53,176.50"
NHS,Barnsley PCT,20/02/2013,Healthcare Contracts,Specialist Commissioning Group,SOUTH WEST YORKSHIRE PARTNERSHIP,713445,"1,926,714.25"
NHS,Barnsley PCT,20/02/2013,Healthcare Contracts,Specialist Commissioning Group,BRADFORD DISTRICT CARE TRUST,181905,"363,385.00"
NHS,Barnsley PCT,20/02/2013,Healthcare Contracts,Specialist Commissioning Group,SHEFFIELD HEALTH & SOCIAL CARE,2100076488,"270,840.17"
NHS,Barnsley PCT,20/02/2013,Healthcare Contracts,Specialist Commissioning Group,TEES ESK & WEAR VALLEYS  NHS FT,430024385,"200,545.67"
NHS,Barnsley PCT,20/02/2013,Healthcare Contracts,Specialist Commissioning Group,NORTHUMBERLAND TYNE & WEAR NHS TRUST,528531,"37,045.00"
NHS,Barnsley PCT,20/02/2013,Healthcare Contracts,Specialist Commissioning Group,NAVIGO,SAL-INV-1014,"84,800.00"
NHS,Barnsley PCT,20/02/2013,Healthcare Contracts,Specialist Commissioning Group,RIVERDALE GRANGE LTD,430,"84,910.31"
NHS,Barnsley PCT,20/02/2013,Healthcare Contracts,Specialist Commissioning Group,THE RETREAT YORK LTD,Jan-13,"156,081.00"
NHS,Barnsley PCT,20/02/2013,Healthcare Contracts,Specialist Commissioning Group,SHEFFIELD TEACHING HOSPITALS NHS TRUST,4000339329,"42,000.00"
NHS,Barnsley PCT,20/02/2013,Healthcare Contracts,Specialist Commissioning Group,SHEFFIELD PCT,2100052347,"65,000.00"
NHS,Barnsley PCT,20/02/2013,Healthcare Contracts,Healthcare,PSS - LIVERPOOL,14793,"54,860.00"
NHS,Barnsley PCT,20/02/2013,Healthcare Contracts,Healthcare,PSS - LIVERPOOL,14625,"67,500.00"
NHS,Barnsley PCT,20/02/2013,Healthcare Contracts,Specialist Commissioning Group,P WALTON,CLAIM 22/11-11/02,"52,122.85"
NHS,Barnsley PCT,20/02/2013,Capital Projects,Capital,TOGEL CONTRACTS LTD,22923,"145,154.29"
NHS,Barnsley PCT,20/02/2013,Capital Projects,Capital,WILLMOTT DIXON CONSTRUSTION LTD,K0066/381083,"121,816.37"
NHS,Barnsley PCT,20/02/2013,Healthcare Contracts,Specialist Commissioning Group,HULL & E.YORKSHIRE HOSPITLAS TRUST,1210000828,"6,719,214.00"
NHS,Barnsley PCT,20/02/2013,Healthcare Contracts,Specialist Commissioning Group,THE LEEDS TEACHING HOSPITALS,397413,"16,905,761.00"
NHS,Barnsley PCT,20/02/2013,Healthcare Contracts,Specialist Commissioning Group,SHEFFIELD TEACHING HOSPITALS NHS TRUST,4000339711,"7,346,622.00"
NHS,Barnsley PCT,20/02/2013,Healthcare Contracts,Specialist Commissioning Group,SHEFFIELD TEACHING HOSPITALS NHS TRUST,4000339731,"2,829,059.00"
NHS,Barnsley PCT,20/02/2013,Healthcare Contracts,Specialist Commissioning Group,SHEFFIELD CHILDRENS HOSPITAL,2100148937,"2,129,942.00"
NHS,Barnsley PCT,20/02/2013,Healthcare Contracts,Specialist Commissioning Group,YORK TEACHING HOSPITALS NHS FT,1010001043,"873,000.00"
NHS,Barnsley PCT,20/02/2013,Healthcare Contracts,Specialist Commissioning Group,HEALTHCARE AT HOME LTD,OP/3347215,"55,095.01"
NHS,Barnsley PCT,20/02/2013,Healthcare Contracts,Specialist Commissioning Group,HEALTHCARE AT HOME LTD,OP/3357280,"59,295.00"
NHS,Barnsley PCT,20/02/2013,Healthcare Contracts,Specialist Commissioning Group,SHEFFIELD TEACHING HOSPITALS NHS TRUST,4000339732,"1,010,390.00"
NHS,Barnsley PCT,20/02/2013,Healthcare Contracts,Specialist Commissioning Group,SHEFFIELD TEACHING HOSPITALS NHS TRUST,4000339712,"1,946,440.00"
NHS,Barnsley PCT,20/02/2013,Healthcare Contracts,Specialist Commissioning Group,DONCASTER & BASSETLAW HOSPITAL,82110284,"32,369.00"
NHS,Barnsley PCT,20/02/2013,Healthcare Contracts,Specialist Commissioning Group,CALDERDALE & HUDDERSFIELD NHS TRUST,243811,"33,233.02"
NHS,Barnsley PCT,20/02/2013,Healthcare Contracts,Specialist Commissioning Group,CALDERDALE & HUDDERSFIELD NHS TRUST,245468,"25,956.74"
NHS,Barnsley PCT,20/02/2013,Healthcare Contracts,Specialist Commissioning Group,CALDERDALE & HUDDERSFIELD NHS TRUST,4710000505,"31,341.06"
NHS,Barnsley PCT,20/02/2013,Healthcare Contracts,Specialist Commissioning Group,YORK TEACHING HOSPITALS NHS FT,1010000125,"56,302.98"
NHS,Barnsley PCT,20/02/2013,Healthcare Contracts,Specialist Commissioning Group,YORK TEACHING HOSPITALS NHS FT,1010001036,"58,351.64"
NHS,Barnsley PCT,20/02/2013,Healthcare Contracts,Specialist Commissioning Group,YORK TEACHING HOSPITALS NHS FT,1010002130,"60,923.01"
NHS,Barnsley PCT,25/02/2013,Opticians,Primary Care,BARNSLEY VISION PLUS LTD,Feb-13,"43,713.99"
NHS,Barnsley PCT,26/02/2013,Healthcare Contracts,Healthcare,NEVILLE HEALTH CARE LTD,2738,"68,790.96"
NHS,Barnsley PCT,27/02/2013,Healthcare Contracts,Healthcare,DERBYSHIRE COMMUNITY HEALTH SERVICES NHS TRUST,11856922,"28,082.00"
NHS,Barnsley PCT,27/02/2013,Property Rent,HQ Services,BARNSLEY COMMUNITY SOLUTIONS (TRANCHE 3) LTD,BCS3-151,"59,472.41"
NHS,Barnsley PCT,27/02/2013,Property Rent,HQ Services,BARNSLEY COMMUNITY SOLUTIONS (TRANCHE 3) LTD,BCS3-150,"65,230.50"
NHS,Barnsley PCT,27/02/2013,Property Rent,HQ Services,BARNSLEY COMMUNITY SOLUTOPNS (TRANCHE 1) LTD,680,"48,029.18"
NHS,Barnsley PCT,27/02/2013,Clinical Waste Contract,HQ Services,BARNSLEY MBC,9000149437,"83,626.20"
NHS,Barnsley PCT,27/02/2013,Property Rent,HQ Services,BARNSLEY COMMUNITY SOLUTOPNS (TRANCHE 1) LTD,679,"53,977.39"
NHS,Barnsley PCT,27/02/2013,Property Rent,HQ Services,BARNSLEY COMMUNITY SOLUTOPNS (TRANCHE 1) LTD,681,"43,715.44"
NHS,Barnsley PCT,27/02/2013,Property Rent,HQ Services,BARNSLEY COMMUNITY SOLUTIONS (TRANCHE 2) LTD,BCS2-230,"31,669.96"
NHS,Barnsley PCT,27/02/2013,Property Rent,HQ Services,BARNSLEY COMMUNITY SOLUTIONS (TRANCHE 2) LTD,BCS2-231,"79,117.72"
NHS,Barnsley PCT,27/02/2013,Healthcare Contracts,Specialist Commissioning Group,CALDERDALE & HUDDERSFIELD NHS TRUST,4710003187,"53,249.00"
NHS,Barnsley PCT,27/02/2013,Healthcare Contracts,Specialist Commissioning Group,SHEFFIELD TEACHING HOSPITALS NHS TRUST,4000332947,"385,796.00"
NHS,Barnsley PCT,27/02/2013,Healthcare Contracts,Specialist Commissioning Group,IMPERIAL COLLEGE HEALTHCARE NHS TRUST,H0080151,"72,829.00"
NHS,Barnsley PCT,27/02/2013,Healthcare Contracts,Specialist Commissioning Group,GREAT ORMOND ST HOSPITAL NHS TRUST,X0097680,"45,765.92"
NHS,Barnsley PCT,27/02/2013,Healthcare Contracts,Specialist Commissioning Group,NORTH BRISTOL NHS TRUST (RVJ),276289,"33,648.00"
NHS,Barnsley PCT,27/02/2013,Healthcare Contracts,Specialist Commissioning Group,CLATTERBRIDGE CENTRE  NHS TRUST,90007363,"28,800.03"
NHS,Barnsley PCT,27/02/2013,Healthcare Contracts,Specialist Commissioning Group,HEALTHCARE AT HOME LTD,OP/3367475,"69,108.54"
NHS,Barnsley PCT,27/02/2013,Healthcare Contracts,Specialist Commissioning Group,HEALTHCARE AT HOME LTD,OP/3378060,"56,671.19"
NHS,Barnsley PCT,27/02/2013,Healthcare Contracts,Specialist Commissioning Group,HEALTHCARE AT HOME LTD,OP/3392926,"52,972.88"
NHS,Barnsley PCT,27/02/2013,Healthcare Contracts,Specialist Commissioning Group,AIREDALE NHS TRUST,1034987,"28,413.51"
NHS,Barnsley PCT,27/02/2013,Healthcare Contracts,Specialist Commissioning Group,DONCASTER & BASSETLAW HOSPITAL,82110499,"26,921.19"
NHS,Barnsley PCT,27/02/2013,Healthcare Contracts,Specialist Commissioning Group,DONCASTER & BASSETLAW HOSPITAL,82110500,"51,560.89"
NHS,Barnsley PCT,27/02/2013,Healthcare Contracts,Specialist Commissioning Group,HULL & E.YORKSHIRE HOSPITLAS TRUST,1210001113,"160,419.16"
NHS,Barnsley PCT,27/02/2013,Healthcare Contracts,Specialist Commissioning Group,MID YORKSHIRE HOSPITALS NHS TRUST,M157633,"30,894.96"
NHS,Barnsley PCT,27/02/2013,Healthcare Contracts,Specialist Commissioning Group,NORTHERN LINCS AND GOOLE HOSPS NHS TRUST,2400000398,"51,144.46"
NHS,Barnsley PCT,27/02/2013,Healthcare Contracts,Specialist Commissioning Group,NORTHERN LINCS AND GOOLE HOSPS NHS TRUST,2400000399,"41,360.95"
NHS,Barnsley PCT,27/02/2013,Healthcare Contracts,Specialist Commissioning Group,SHEFFIELD TEACHING HOSPITALS NHS TRUST,4000340189,"245,814.71"
NHS,Barnsley PCT,27/02/2013,Healthcare Contracts,Specialist Commissioning Group,THE LEEDS TEACHING HOSPITALS,395729,"261,207.29"
NHS,Barnsley PCT,28/02/2013,GP Contracts,Primary Care,GP CONTRACT,Feb-13,"25,015.66"
NHS,Barnsley PCT,28/02/2013,GP Contracts,Primary Care,GP CONTRACT,Feb-13,"30,751.65"
NHS,Barnsley PCT,28/02/2013,GP Contracts,Primary Care,GP CONTRACT,Feb-13,"31,508.25"
NHS,Barnsley PCT,28/02/2013,GP Contracts,Primary Care,GP CONTRACT,Feb-13,"32,119.53"
NHS,Barnsley PCT,28/02/2013,GP Contracts,Primary Care,GP CONTRACT,Feb-13,"33,026.85"
NHS,Barnsley PCT,28/02/2013,GP Contracts,Primary Care,GP CONTRACT,Feb-13,"41,860.26"
NHS,Barnsley PCT,28/02/2013,GP Contracts,Primary Care,GP CONTRACT,Feb-13,"44,600.94"
NHS,Barnsley PCT,28/02/2013,GP Contracts,Primary Care,GP CONTRACT,Feb-13,"53,116.08"
NHS,Barnsley PCT,28/02/2013,GP Contracts,Primary Care,GP CONTRACT,Feb-13,"55,191.62"
NHS,Barnsley PCT,28/02/2013,GP Contracts,Primary Care,GP CONTRACT,Feb-13,"63,138.71"
NHS,Barnsley PCT,28/02/2013,GP Contracts,Primary Care,GP CONTRACT,Feb-13,"69,498.82"
NHS,Barnsley PCT,28/02/2013,GP Contracts,Primary Care,GP CONTRACT,Feb-13,"77,970.04"
NHS,Barnsley PCT,28/02/2013,GP Contracts,Primary Care,GP CONTRACT,Feb-13,"80,100.85"
NHS,Barnsley PCT,28/02/2013,GP Contracts,Primary Care,GP CONTRACT,Feb-13,"101,656.84"
